[Event "7th Francophone-ch 2019"]
[Site "Paris"]
[Date "2019.08.11"]
[Round "8.2"]
[White "David, Alberto"]
[Black "Fontaine, Quentin"]
[Result "1-0"]
[ECO "C00"]
[WhiteElo "2553"]
[BlackElo "2339"]
[Annotator "ChessBase"]
[PlyCount "115"]
[EventDate "2019.08.04"]
[EventType "swiss"]
[EventCountry "FRA"]
[SourceTitle "playchess.com"]
[Source "ChessBase"]
[SourceQuality "1"]
[TimeControl "40/5400+30:1800+30"]

1. Nf3 {[%emt 0:00:00]} d5 {[%emt 0:04:11]} 2. g3 {[%emt 0:00:00]} Nf6 {[%emt 0:00:20]} 3. Bg2 {[%emt 0:00:10]} e6 {[%emt 0:00:37]} 4. O-O {[%emt 0:00:33]} c5 {[%emt 0:00:23]} 5. d3 {[%emt 0:04:39]} Nc6 {[%emt 0:00:15]} 6. Nbd2 {[%emt 0:00:05]} Be7 {[%emt 0:00:03]} 7. e4 {[%emt 0:00:04]} O-O {[%emt 0:00:19]} 8. Re1 {[%emt 0:00:08]} b5 {[%emt 0:00:11]} 9. e5 {[%emt 0:00:10]} Nd7 {[%emt 0:00:04]} 10. Nf1 {[%emt 0:00:05]} Bb7 {[%emt 0:01:27]} 11. h4 {[%emt 0:03:00]} Qc7 {[%emt 0:00:12]} 12. Bf4 {[%emt 0:00:39]} Rfc8 {[%emt 0:00:05]} 13. h5 {[%emt 0:21:41]} h6 {[%emt 0:00:08]} 14. c3 {[%emt 0:06:16]} a5 {[%emt 0:04:11]} 15. a4 {[%emt 0:14:31]} bxa4 {[%emt 0:03:09]} 16. Rxa4 {[%emt 0:00:57]} Nb6 {[%emt 0:14:13]} 17. Ra2 {[%emt 0:01:45]} a4 {[%emt 0:02:28]} 18. N1h2 {[%emt 0:05:47]} d4 {[%emt 0:25:14]} 19. c4 {[%emt 0:00:45]} a3 {[%emt 0:05:23]} 20. Rxa3 {[%emt 0:06:24]} Nb4 {[%emt 0:04:26]} 21. Ng4 {[%emt 0:06:32]} Bc6 {[%emt 0:04:47]} 22. Qe2 {[%emt 0:03:46]} Qb7 {[%emt 0:01:55]} 23. Rea1 {[%emt 0:05:34]} Nc2 {[%emt 0:06:17]} 24. Qxc2 {[%emt 0:00:31]} Bxf3 {[%emt 0:02:13]} 25. Bxf3 {[%emt 0:00:05]} Qxf3 {[%emt 0:00:05]} 26. Qd1 {[%emt 0:00:03]} Qxd1+ {[%emt 0:01:34]} 27. Rxd1 {[%emt 0:00:03]} Rab8 {[%emt 0:05:37]} 28. Ra7 {[%emt 0:03:25]} Kf8 {[%emt 0:00:37]} 29. Rda1 {[%emt 0:00:15]} Ke8 {[%emt 0:00:13]} 30. Kf1 {[%emt 0:02:53]} Nd7 {[%emt 0:00:53]} 31. Bc1 {[%emt 0:01:08]} Rb3 {[%emt 0:02:20]} 32. Ke2 {[%emt 0:02:28]} Nb8 {[%emt 0:02:07]} 33. Ra8 {[%emt 0:01:07]} Kd7 {[%emt 0:01:18]} 34. R1a7+ {[%emt 0:04:24]} Rc7 {[%emt 0:00:23]} 35. Rxc7+ {[%emt 0:00:12]} Kxc7 {[%emt 0:00:04]} 36. Ra7+ {[%emt 0:00:05]} Kd8 {[%emt 0:00:19]} 37. Kd2 {[%emt 0:05:06]} Nc6 {[%emt 0:02:08]} 38. Ra8+ {[%emt 0:00:04]} Nb8 {[%emt 0:00:05]} 39. Kc2 {[%emt 0:00:53]} Rb6 {[%emt 0:00:40]} 40. Bd2 {[%emt 0:02:47]} Kc8 {[%emt 0:01:05]} 41. f4 {[%emt 0:05:04]} Kb7 {[%emt 0:00:32]} 42. Ra1 {[%emt 0:00:11]} Nc6 {[%emt 0:00:51]} 43. Rf1 {[%emt 0:02:19]} Ra6 {[%emt 0:02:30]} 44. Nf2 {[%emt 0:04:35]} Kc7 {[%emt 0:02:09]} 45. g4 {[%emt 0:04:27]} Ra8 {[%emt 0:03:04]} 46. f5 {[%emt 0:04:34]} Kb6 {[%emt 0:09:40]} 47. f6 {[%emt 0:01:31]} Bf8 {[%emt 0:00:08]} 48. Re1 {[%emt 0:00:56]} Nb8 {[%emt 0:03:52]} 49. g5 {[%emt 0:01:46]} Nd7 {[%emt 0:00:53]} 50. Ng4 {[%emt 0:04:12]} hxg5 {[%emt 0:00:31]} 51. Bxg5 {[%emt 0:00:05]} Kc6 {[%emt 0:01:36]} 52. Rf1 {[%emt 0:01:38]} Rc8 {[%emt 0:02:08]} 53. fxg7 {[%emt 0:02:00]} Bxg7 {[%emt 0:00:22]} 54. Rxf7 {[%emt 0:00:04]} Nxe5 {[%emt 0:00:33]} 55. Rxg7 {[%emt 0:01:02]} Nxg4 {[%emt 0:00:05]} 56. h6 {[%emt 0:00:27]} Rh8 {[%emt 0:01:39]} 57. h7 {[%emt 0:00:05]} Kd6 {[%emt 0:00:20]} 58. Be7+ {[%emt 0:00:06]} 1-0

[Event "7th Francophone-ch 2019"]
[Site "Paris"]
[Date "2019.08.11"]
[Round "8.3"]
[White "Shchekachev, Andrei"]
[Black "Bergez, Luc"]
[Result "0-1"]
[ECO "D37"]
[WhiteElo "2531"]
[BlackElo "2308"]
[Annotator "ChessBase"]
[PlyCount "62"]
[EventDate "2019.08.04"]
[EventType "swiss"]
[EventCountry "FRA"]
[SourceTitle "playchess.com"]
[Source "ChessBase"]
[SourceQuality "1"]
[TimeControl "40/5400+30:1800+30"]

1. Nf3 {[%emt 0:00:22]} d5 {[%emt 0:00:41]} 2. d4 {[%emt 0:00:31]} Nf6 {[%emt 0:01:00]} 3. c4 {[%emt 0:00:12]} e6 {[%emt 0:01:00]} 4. Nc3 {[%emt 0:00:24]} a6 {[%emt 0:03:18]} 5. cxd5 {[%emt 0:02:51]} exd5 {[%emt 0:00:24]} 6. Bg5 {[%emt 0:00:08]} Be7 {[%emt 0:03:33]} 7. e3 {[%emt 0:01:54]} O-O {[%emt 0:01:13]} 8. Bd3 {[%emt 0:00:56]} Be6 {[%emt 0:04:09]} 9. h3 {[%emt 0:03:33]} Nbd7 {[%emt 0:03:28]} 10. O-O {[%emt 0:00:46]} h6 {[%emt 0:02:39]} 11. Bf4 {[%emt 0:02:29]} b5 {[%emt 0:10:23]} 12. Rc1 {[%emt 0:07:40]} c5 {[%emt 0:00:36]} 13. dxc5 {[%emt 0:05:48]} Bxc5 {[%emt 0:00:10]} 14. Ne2 {[%emt 0:08:30]} Rc8 {[%emt 0:02:28]} 15. Nfd4 {[%emt 0:05:39]} Qb6 {[%emt 0:05:03]} 16. Ng3 {[%emt 0:09:46]} g5 {[%emt 0:07:25]} 17. Ndf5 {[%emt 0:03:02]} Bxf5 {[%emt 0:16:26]} 18. Nxf5 {[%emt 0:00:05]} gxf4 {[%emt 0:00:23]} 19. Nxh6+ {[%emt 0:01:13]} Kh8 {[%emt 0:04:35]} 20. exf4 {[%emt 0:00:09]} Ne4 {[%emt 0:07:03]} 21. Bxe4 {[%emt 0:13:36]} dxe4 {[%emt 0:02:41]} 22. Qxd7 {[%emt 0:14:47]} Bxf2+ {[%emt 0:00:38]} 23. Kh1 {[%emt 0:07:33]} Rxc1 {[%emt 0:00:49]} 24. Nxf7+ {[%emt 0:00:02]} Rxf7 {[%emt 0:00:21]} 25. Qe8+ {[%emt 0:00:02]} Kg7 {[%emt 0:00:10]} 26. Rxc1 {[%emt 0:00:01]} Qd4 {[%emt 0:05:06]} 27. Qc8 {[%emt 0:07:04]} Qd6 {[%emt 0:01:48]} 28. Qg4+ {[%emt 0:02:24]} Qg6 {[%emt 0:00:09]} 29. Qd1 {[%emt 0:01:32]} Be3 {[%emt 0:04:04]} 30. Rc8 {[%emt 0:00:44]} Qg3 {[%emt 0:00:18]} 31. Re8 {[%emt 0:00:32]} Qxf4 {[%emt 0:02:02]} 0-1

[Event "7th Francophone-ch 2019"]
[Site "Paris"]
[Date "2019.08.11"]
[Round "8.4"]
[White "Philippe, Guillaume"]
[Black "Mastrovasilis, Athanasios"]
[Result "0-1"]
[ECO "D32"]
[WhiteElo "2344"]
[BlackElo "2518"]
[Annotator "ChessBase"]
[PlyCount "84"]
[EventDate "2019.08.04"]
[EventType "swiss"]
[EventCountry "FRA"]
[SourceTitle "playchess.com"]
[Source "ChessBase"]
[SourceQuality "1"]
[TimeControl "40/5400+30:1800+30"]

1. Nf3 {[%emt 0:07:12]} Nf6 {[%emt 0:00:09]} 2. e3 {[%emt 0:00:08]} c5 {[%emt 0:01:25]} 3. c4 {[%emt 0:00:18]} e6 {[%emt 0:00:20]} 4. b3 {[%emt 0:00:11]} d5 {[%emt 0:00:14]} 5. Bb2 {[%emt 0:00:03]} Nc6 {[%emt 0:00:15]} 6. cxd5 {[%emt 0:00:17]} exd5 {[%emt 0:00:07]} 7. d4 {[%emt 0:00:09]} a6 {[%emt 0:04:36]} 8. Be2 {[%emt 0:01:47]} Bd6 {[%emt 0:00:10]} 9. O-O {[%emt 0:08:42]} O-O {[%emt 0:02:46]} 10. dxc5 {[%emt 0:01:30]} Bxc5 {[%emt 0:00:14]} 11. Nc3 {[%emt 0:00:13]} Ba7 {[%emt 0:04:08]} 12. Rc1 {[%emt 0:11:26]} Re8 {[%emt 0:00:17]} 13. Na4 {[%emt 0:43:46]} Ne4 {[%emt 0:03:06]} 14. Nd4 {[%emt 0:00:07]} Qg5 {[%emt 0:01:45]} 15. Nxc6 {[%emt 0:04:23]} bxc6 {[%emt 0:03:56]} 16. Bd4 {[%emt 0:00:03]} Bh3 {[%emt 0:01:17]} 17. Bf3 {[%emt 0:00:03]} Re6 {[%emt 0:00:48]} 18. Re1 {[%emt 0:05:54]} Bxd4 {[%emt 0:33:39]} 19. exd4 {[%emt 0:01:41]} Nd2 {[%emt 0:02:37]} 20. Re3 {[%emt 0:04:55]} Rxe3 {[%emt 0:05:25]} 21. Qxd2 {[%emt 0:00:04]} Re5 {[%emt 0:00:20]} 22. Qxg5 {[%emt 0:00:40]} Rxg5 {[%emt 0:00:03]} 23. Rxc6 {[%emt 0:00:47]} Re8 {[%emt 0:05:56]} 24. Kf1 {[%emt 0:02:43]} Bd7 {[%emt 0:03:35]} 25. Rc1 {[%emt 0:01:04]} Bb5+ {[%emt 0:02:14]} 26. Kg1 {[%emt 0:00:04]} Bxa4 {[%emt 0:01:25]} 27. bxa4 {[%emt 0:00:03]} Rf5 {[%emt 0:01:47]} 28. Kf1 {[%emt 0:01:40]} g6 {[%emt 0:01:03]} 29. Rc5 {[%emt 0:01:04]} Rb8 {[%emt 0:01:15]} 30. Bxd5 {[%emt 0:02:32]} Rb2 {[%emt 0:10:14]} 31. Rc8+ {[%emt 0:01:23]} Kg7 {[%emt 0:00:02]} 32. Bf3 {[%emt 0:00:12]} Rxa2 {[%emt 0:02:46]} 33. Rc4 {[%emt 0:00:08]} Rf4 {[%emt 0:01:32]} 34. Ke1 {[%emt 0:00:02]} a5 {[%emt 0:02:20]} 35. h3 {[%emt 0:00:03]} h5 {[%emt 0:00:29]} 36. Kf1 {[%emt 0:00:56]} g5 {[%emt 0:01:31]} 37. Rc5 {[%emt 0:01:43]} g4 {[%emt 0:00:15]} 38. hxg4 {[%emt 0:00:08]} hxg4 {[%emt 0:00:06]} 39. Rg5+ {[%emt 0:00:12]} Kf6 {[%emt 0:00:20]} 40. Rxg4 {[%emt 0:00:04]} Rxg4 {[%emt 0:00:11]} 41. Bxg4 {[%emt 0:30:03]} Rxa4 {[%emt 0:30:12]} 42. Ke2 {[%emt 0:00:18]} Rxd4 {[%emt 0:06:10]} 0-1

[Event "7th Francophone-ch 2019"]
[Site "Paris"]
[Date "2019.08.11"]
[Round "8.5"]
[White "Bouget, Alexandre"]
[Black "Rakotomaharo, Fy Antenaina"]
[Result "1/2-1/2"]
[ECO "D85"]
[WhiteElo "2275"]
[BlackElo "2419"]
[Annotator "NA"]
[PlyCount "108"]
[EventDate "2019.08.04"]
[EventType "swiss"]
[EventCountry "FRA"]
[SourceTitle "playchess.com"]
[Source "ChessBase"]
[SourceQuality "1"]
[TimeControl "40/5400+30:1800+30"]

1. d4 {[%emt 0:00:00]} Nf6 {[%emt 0:00:00]} 2. c4 {[%emt 0:00:00]} g6 {[%emt 0:00:00]} 3. Nc3 {[%emt 0:00:00]} d5 {[%emt 0:00:00]} 4. cxd5 {[%emt 0:00:41]} Nxd5 {[%emt 0:00:00]} 5. e4 {[%emt 0:00:06]} Nxc3 {[%emt 0:00:00]} 6. bxc3 {[%emt 0:00:04]} Bg7 {[%emt 0:00:00]} 7. Ba3 {[%emt 0:00:07]} Nd7 {[%emt 0:02:07]} 8. Qb3 {[%emt 0:00:07]} c5 {[%emt 0:04:25]} 9. Rd1 {[%emt 0:00:12]} Qa5 {[%emt 0:01:50]} 10. Nf3 {[%emt 0:03:09]} O-O {[%emt 0:13:00]} 11. Be2 {[%emt 0:00:05]} Nf6 {[%emt 0:10:44]} 12. e5 {[%emt 0:21:04]} Be6 {[%emt 0:03:08]} 13. Qb2 {[%emt 0:00:09]} Nd5 {[%emt 0:00:38]} 14. Bxc5 {[%emt 0:02:09]} Nxc3 {[%emt 0:04:06]} 15. Qd2 {[%emt 0:11:32]} b6 {[%emt 0:05:24]} 16. Rc1 {[%emt 0:28:11]} (16. Bxe7 $17 Rfe8 17. Bd6) 16... bxc5 {[%emt 0:01:57]} 17. dxc5 $19 {[%emt 0:02:39]} (17. Qxc3 {might work better.} Qxc3+ 18. Rxc3) 17... Rab8 {[%emt 0:01:33]} 18. Bd3 {[%emt 0:12:34]} Qxa2 {[%emt 0:05:00]} 19. Rxc3 {[%emt 0:02:14]} Rb2 {[%emt 0:00:07]} 20. Rc2 {[%emt 0:07:06]} Rxc2 {[%emt 0:00:32]} 21. Qxc2 {[%emt 0:03:47]} Qa1+ {[%emt 0:02:10]} 22. Qb1 {[%emt 0:00:52]} Qc3+ {[%emt 0:10:10]} 23. Ke2 {[%emt 0:00:19]} Bh6 {[%emt 0:00:03]} 24. Qc2 {[%emt 0:01:09]} Qxc2+ {[%emt 0:00:09]} 25. Bxc2 {[%emt 0:00:06]} Rc8 {[%emt 0:00:01]} 26. Rd1 {[%emt 0:02:04]} Rxc5 {[%emt 0:00:19]} 27. Rd8+ {[%emt 0:00:04]} Kg7 {[%emt 0:00:03]} 28. Be4 {[%emt 0:01:23]} Ra5 {[%emt 0:02:05]} 29. Kd3 {[%emt 0:00:55]} Ra3+ {[%emt 0:02:40]} 30. Kd4 {[%emt 0:01:09]} Ra2 {[%emt 0:01:43]} 31. Ra8 {[%emt 0:00:26]} Bc1 {[%emt 0:00:56]} 32. Kd3 {[%emt 0:00:27]} g5 {[%emt 0:00:30]} 33. Nd4 {[%emt 0:00:18]} Bf4 {[%emt 0:04:05]} 34. Nxe6+ {[%emt 0:00:11]} fxe6 {[%emt 0:00:04]} 35. Re8 {[%emt 0:00:20]} Rd2+ {[%emt 0:00:06]} 36. Kc4 {[%emt 0:00:37]} Rd7 {[%emt 0:00:03]} 37. Bc6 {[%emt 0:00:59]} Rc7 {[%emt 0:00:25]} 38. Kb5 {[%emt 0:00:12]} Bxe5 {[%emt 0:00:18]} 39. Rd8 {[%emt 0:01:19]} h5 {[%emt 0:02:54]} 40. h3 {[%emt 0:00:10]} Bd6 {[%emt 0:00:46]} 41. Rd7 {[%emt 0:30:44]} a6+ {[%emt 0:30:57]} 42. Kb6 {[%emt 0:00:04]} Rc8 {[%emt 0:00:03]} 43. Ra7 {[%emt 0:00:00]} Rf8 {[%emt 0:00:00]} 44. f3 {[%emt 0:00:00]} Rf5 {[%emt 0:00:00]} 45. Rxa6 {[%emt 0:00:00]} Rc5 {[%emt 0:00:00]} 46. Ra5 {[%emt 0:00:00]} Rf5 {[%emt 0:00:00]} 47. Rxf5 {[%emt 0:00:00]} exf5 {[%emt 0:00:00]} 48. Be8 {[%emt 0:00:00]} Kf6 {[%emt 0:00:00]} 49. Kc6 {[%emt 0:00:00]} Ke5 {[%emt 0:00:00]} 50. Bxh5 {[%emt 0:00:00]} Kf4 {[%emt 0:00:00]} 51. g4 {[%emt 0:05:46]} fxg4 {[%emt 0:00:00]} 52. Bxg4 {[%emt 0:00:00]} Ba3 {[%emt 0:00:00]} 53. Kd5 {[%emt 0:00:00]} e5 {[%emt 0:00:00]} 54. Kc4 {[%emt 0:00:00]} Be7 {[%emt 0:00:00]} 1/2-1/2

[Event "7th Francophone-ch 2019"]
[Site "Paris"]
[Date "2019.08.11"]
[Round "8.6"]
[White "Aloma Vidal, Robert"]
[Black "Macon, Arthur"]
[Result "1/2-1/2"]
[ECO "B11"]
[WhiteElo "2419"]
[BlackElo "2270"]
[Annotator "NA"]
[PlyCount "85"]
[EventDate "2019.08.04"]
[EventType "swiss"]
[EventCountry "FRA"]
[SourceTitle "playchess.com"]
[Source "ChessBase"]
[SourceQuality "1"]
[TimeControl "40/5400+30:1800+30"]

1. e4 {[%emt 0:04:52]} c6 {[%emt 0:00:12]} 2. Nc3 {[%emt 0:06:35]} d5 {[%emt 0:00:32]} 3. Nf3 {[%emt 0:00:06]} dxe4 {[%emt 0:01:16]} 4. Nxe4 {[%emt 0:00:03]} Nf6 {[%emt 0:00:10]} 5. Nxf6+ {[%emt 0:02:43]} exf6 {[%emt 0:00:23]} 6. Bc4 {[%emt 0:00:26]} Bd6 {[%emt 0:03:24]} 7. Qe2+ {[%emt 0:00:16]} Qe7 {[%emt 0:01:36]} 8. Qxe7+ {[%emt 0:00:11] B11: Caro-Kann: Two Knights Variation} (8. d4 Na6 9. O-O Qxe2 10. Bxe2 Bf5 11. c3 Nc7 12. Nd2 Nd5 13. Nc4 Bc7 14. Ne3 Nxe3 15. Bxe3 O-O-O {½-½ (68) Adams,M (2712)-Tari,A (2618) Batumi 2018}) 8... Kxe7 {[%emt 0:01:51]} 9. O-O {[%emt 0:00:07]} Rd8 {[%emt 0:06:22]} 10. Re1+ {[%emt 0:00:24]} Kf8 {[%emt 0:00:12]} 11. h3 {[%emt 0:00:16]} Nd7 {[%emt 0:04:47]} 12. d4 {[%emt 0:00:12]} Nb6 {[%emt 0:00:28]} 13. Bd3 {[%emt 0:01:08]} h6 $146 {[%emt 0:04:18]} ({Predecessor:} 13... g6 14. c4 Nd7 15. c5 Bb8 {½-½ (40) Alexovic,J-Dlhy,J Slovakia 1995}) 14. c4 {[%emt 0:01:49]} Bb4 {[%emt 0:04:54]} 15. Re2 {[%emt 0:03:26]} Be6 {[%emt 0:04:04]} 16. b3 {[%emt 0:00:44]} Be7 {[%emt 0:14:11]} 17. g4 {[%emt 0:11:06]} g5 {[%emt 0:08:44]} 18. Kg2 {[%emt 0:03:35]} a5 {[%emt 0:01:55]} 19. a4 {[%emt 0:04:58]} Nd7 {[%emt 0:05:08]} 20. Be4 $16 {[%emt 0:02:45]} Nb8 {[%emt 0:02:25]} 21. Bd2 {[%emt 0:02:50]} Bb4 {[%emt 0:01:16]} 22. Bxb4+ {[%emt 0:04:10]} axb4 {[%emt 0:00:03]} 23. d5 {[%emt 0:01:32]} cxd5 {[%emt 0:01:37]} 24. cxd5 {[%emt 0:01:00]} Bd7 {[%emt 0:00:16]} 25. Rc1 {[%emt 0:04:34]} Na6 {[%emt 0:01:30]} 26. Nd4 {[%emt 0:13:51]} Rac8 {[%emt 0:04:12]} 27. Rxc8 {[%emt 0:06:32]} Rxc8 {[%emt 0:05:16]} 28. Bf5 {[%emt 0:03:49]} Bxf5 {[%emt 0:05:27]} 29. Nxf5 {[%emt 0:00:02]} Rd8 {[%emt 0:01:09]} 30. Rc2 {[%emt 0:01:53]} Ke8 {[%emt 0:06:08]} 31. Re2+ {[%emt 0:02:13]} Kf8 {[%emt 0:00:29]} 32. d6 {[%emt 0:00:49]} Nc5 {[%emt 0:01:09]} 33. Rc2 {[%emt 0:01:25]} Nxb3 {[%emt 0:04:43]} 34. Rc4 {[%emt 0:01:50]} Ke8 {[%emt 0:02:28]} 35. Rxb4 {[%emt 0:01:10]} Nc5 {[%emt 0:00:26]} 36. a5 {[%emt 0:01:16]} Kd7 {[%emt 0:03:42]} 37. Rc4 {[%emt 0:01:27]} Kc6 {[%emt 0:01:02]} 38. Rb4 {[%emt 0:07:07]} Ra8 {[%emt 0:00:36]} 39. Rb6+ {[%emt 0:00:19]} Kd7 {[%emt 0:00:33]} 40. Nxh6 {[%emt 0:03:17]} Rxa5 {[%emt 0:00:28]} 41. Nxf7 {[%emt 0:30:03]} Ra6 {[%emt 0:05:21]} 42. Rb5 {[%emt 0:00:00]} b6 {[%emt 0:01:29]} 43. h4 {[%emt 0:00:00]} 1/2-1/2

[Event "7th Francophone-ch 2019"]
[Site "Paris"]
[Date "2019.08.11"]
[Round "8.7"]
[White "Berend, Fred"]
[Black "Ralison, Milanto Harifidy"]
[Result "0-1"]
[ECO "A45"]
[WhiteElo "2350"]
[BlackElo "2291"]
[Annotator "NA"]
[PlyCount "158"]
[EventDate "2019.08.04"]
[EventType "swiss"]
[EventCountry "FRA"]
[SourceTitle "playchess.com"]
[Source "ChessBase"]
[SourceQuality "1"]
[TimeControl "40/5400+30:1800+30"]

1. d4 {[%emt 0:00:00]} Nf6 {[%emt 0:00:00]} 2. Bg5 {[%emt 0:00:00]} Ne4 {[%emt 0:00:00]} 3. Bf4 {[%emt 0:00:00]} d5 {[%emt 0:00:59]} 4. e3 {[%emt 0:00:00]} g6 {[%emt 0:00:52]} 5. Bd3 {[%emt 0:03:54]} Bg7 {[%emt 0:00:42]} 6. h4 {[%emt 0:06:24]} c5 {[%emt 0:02:40]} 7. c3 {[%emt 0:04:10]} h6 {[%emt 0:04:01]} 8. Nd2 {[%emt 0:06:49]} Nxd2 {[%emt 0:01:22]} 9. Qxd2 {[%emt 0:00:06]} Nc6 {[%emt 0:01:06]} 10. Nf3 {[%emt 0:02:16]} Qb6 {[%emt 0:01:54]} 11. Ne5 {[%emt 0:10:01]} c4 {[%emt 0:14:40]} 12. Bb1 {[%emt 0:02:02]} g5 {[%emt 0:05:29]} 13. Bg3 {[%emt 0:03:20]} Be6 $16 {[%emt 0:01:24]} 14. hxg5 {[%emt 0:05:07]} hxg5 {[%emt 0:01:26]} 15. Rxh8+ {[%emt 0:00:04]} Bxh8 {[%emt 0:00:07]} 16. Bh7 {[%emt 0:07:02]} O-O-O {[%emt 0:09:26]} 17. O-O-O {[%emt 0:02:24]} Bxe5 {[%emt 0:04:22]} 18. dxe5 {[%emt 0:00:34]} Qc7 {[%emt 0:01:15]} 19. Bc2 {[%emt 0:04:38]} b6 {[%emt 0:02:46]} 20. e4 {[%emt 0:14:39]} Nxe5 {[%emt 0:03:05]} 21. Qxg5 {[%emt 0:04:00]} f6 {[%emt 0:00:11]} 22. Qe3 {[%emt 0:00:41]} dxe4 {[%emt 0:15:19]} 23. Qxe4 {[%emt 0:03:21]} Rxd1+ {[%emt 0:00:24]} 24. Bxd1 {[%emt 0:01:26]} Qc6 {[%emt 0:01:28]} 25. Qxc6+ {[%emt 0:01:27]} Nxc6 {[%emt 0:00:06]} 26. Kd2 {[%emt 0:00:25]} Bd5 {[%emt 0:01:40]} 27. f3 {[%emt 0:01:25]} Kd7 {[%emt 0:01:11]} 28. Ke3 {[%emt 0:00:36]} e5 {[%emt 0:01:30]} 29. Bc2 {[%emt 0:00:58]} Ke6 {[%emt 0:02:04]} 30. Bh4 {[%emt 0:01:07]} Ne7 {[%emt 0:02:37]} 31. g4 {[%emt 0:01:06]} Bc6 {[%emt 0:01:18]} 32. Kf2 {[%emt 0:00:36]} Bd5 {[%emt 0:01:14]} 33. Bd1 {[%emt 0:04:02]} Nc8 {[%emt 0:01:31]} 34. Bc2 {[%emt 0:00:48]} Ne7 {[%emt 0:00:05]} 35. Ke2 {[%emt 0:00:59]} Bc6 {[%emt 0:01:29]} 36. Bh7 {[%emt 0:03:22]} Kf7 {[%emt 0:02:07]} 37. Bc2 {[%emt 0:04:35]} Ke6 {[%emt 0:00:06]} 38. Bg3 {[%emt 0:00:21]} b5 {[%emt 0:03:50]} 39. Bh2 {[%emt 0:02:50]} a6 {[%emt 0:01:16]} 40. Kf2 {[%emt 0:00:33]} Bb7 {[%emt 0:01:39]} 41. Kg3 {[%emt 0:31:18]} Bc6 {[%emt 0:31:10]} 42. Bg1 {[%emt 0:00:27]} Nd5 {[%emt 0:03:19]} 43. Bf5+ {[%emt 0:00:00]} Kd6 {[%emt 0:00:00]} 44. Ba7 {[%emt 0:00:00]} Nf4 {[%emt 0:00:00]} 45. Bb8+ {[%emt 0:00:00]} Ke7 {[%emt 0:00:00]} 46. Bc7 {[%emt 0:00:00]} Nd3 {[%emt 0:00:00]} 47. b3 {[%emt 0:00:00]} cxb3 {[%emt 0:00:00]} 48. axb3 {[%emt 0:00:00]} Nc1 {[%emt 0:00:00]} 49. g5 {[%emt 0:00:00]} Nxb3 {[%emt 0:00:00]} 50. g6 {[%emt 0:00:00]} Bd5 {[%emt 0:00:00]} 51. Bc2 {[%emt 0:00:00]} Nd2 {[%emt 0:00:00]} 52. Bd1 {[%emt 0:02:26]} Kf8 {[%emt 0:00:00]} 53. f4 {[%emt 0:00:50]} Ne4+ {[%emt 0:00:00]} 54. Kh4 {[%emt 0:00:44]} Nxc3 {[%emt 0:00:00]} 55. Bg4 {[%emt 0:00:14]} exf4 {[%emt 0:00:00]} 56. Bxf4 {[%emt 0:00:30]} Kg7 {[%emt 0:00:00]} 57. Kh5 {[%emt 0:00:09]} b4 {[%emt 0:00:00]} 58. Bh6+ {[%emt 0:00:18]} Kg8 {[%emt 0:00:00]} 59. Bd2 {[%emt 0:00:18]} a5 {[%emt 0:00:17]} 60. Kh6 {[%emt 0:00:02]} Ne4 {[%emt 0:05:15]} 61. Bf4 {[%emt 0:00:38]} b3 {[%emt 0:01:19]} 62. Bf5 {[%emt 0:00:33]} b2 {[%emt 0:00:56]} 63. g7 {[%emt 0:00:20]} Kf7 {[%emt 0:00:12]} 64. Bg6+ {[%emt 0:03:38]} Ke7 {[%emt 0:00:06]} 65. Bxe4 {[%emt 0:01:10]} Bxe4 {[%emt 0:00:25]} 66. g8=Q {[%emt 0:00:04]} b1=Q {[%emt 0:00:15]} 67. Qg3 {[%emt 0:00:41]} Qh1+ {[%emt 0:01:05]} 68. Qh2 {[%emt 0:00:03]} Qxh2+ 69. Bxh2 {[%emt 0:00:00]} a4 {[%emt 0:00:38]} 70. Bf4 {[%emt 0:00:05]} a3 {[%emt 0:00:11]} 71. Bc1 {[%emt 0:00:02]} a2 {[%emt 0:00:04]} 72. Bb2 {[%emt 0:00:02]} Ke6 {[%emt 0:00:35]} 73. Kh5 {[%emt 0:00:05]} f5 {[%emt 0:00:16]} 74. Kg5 {[%emt 0:00:14]} Kd5 {[%emt 0:00:05]} 75. Kf4 {[%emt 0:00:03]} Kc4 {[%emt 0:00:19]} 76. Ke3 {[%emt 0:00:06]} Kb3 {[%emt 0:00:07]} 77. Be5 {[%emt 0:00:22]} Kc2 {[%emt 0:00:07]} 78. Kf4 {[%emt 0:01:29]} Kb1 {[%emt 0:00:09]} 79. Bd4 {[%emt 0:00:14]} a1=Q {[%emt 0:00:09]} 0-1

[Event "7th Francophone-ch 2019"]
[Site "Paris"]
[Date "2019.08.11"]
[Round "8.8"]
[White "Shirazi, Kamran"]
[Black "Sim, Sylvain"]
[Result "1-0"]
[ECO "A13"]
[WhiteElo "2343"]
[BlackElo "2211"]
[Annotator "NA"]
[PlyCount "97"]
[EventDate "2019.08.04"]
[EventType "swiss"]
[EventCountry "FRA"]
[SourceTitle "playchess.com"]
[Source "ChessBase"]
[SourceQuality "1"]
[TimeControl "40/5400+30:1800+30"]

1. c4 {[%emt 0:01:13]} Nf6 {[%emt 0:00:14]} 2. g3 {[%emt 0:00:26]} e6 {[%emt 1:30:46]} 3. Bg2 {[%emt 0:00:17]} d5 {[%emt 0:00:30]} 4. Nf3 {[%emt 0:00:15]} c6 {[%emt 0:00:00]} 5. b3 {[%emt 0:01:10]} Bd6 {[%emt 0:00:00]} 6. O-O {[%emt 0:00:19]} O-O {[%emt 0:00:00]} 7. Bb2 {[%emt 0:00:11]} Nbd7 {[%emt 0:00:00]} 8. d3 {[%emt 0:00:16]} Re8 {[%emt 0:00:00]} 9. Nc3 {[%emt 0:02:09] A13: English Opening: 1...e6} Qe7 {[%emt 0:00:00]} 10. Qc2 {[%emt 0:00:47]} Ba3 {[%emt 0:00:00]} 11. Bxa3 {[%emt 0:00:25]} Qxa3 {[%emt 0:00:00]} 12. cxd5 $146 {[%emt 0:00:05]} ({Predecessor:} 12. Rfe1 a5 13. cxd5 Nxd5 14. Nd2 N7b6 15. Ncb1 Qe7 16. a3 e5 {½-½ (31) Kanovsky,D (2385)-Stachowiak,K (2474) Teplice 2013}) 12... exd5 {[%emt 0:00:00]} 13. e4 {[%emt 0:00:04]} dxe4 {[%emt 0:00:00]} 14. dxe4 {[%emt 0:00:02]} Qc5 {[%emt 0:00:00]} 15. Ne1 {[%emt 0:04:44]} Qh5 {[%emt 0:00:00]} 16. f3 {[%emt 0:03:19]} Nf8 {[%emt 0:00:00]} 17. Nd3 {[%emt 0:00:41]} Bh3 {[%emt 0:00:00]} 18. Nf4 {[%emt 0:40:20]} Qc5+ {[%emt 0:00:00]} 19. Rf2 {[%emt 0:00:07]} Bxg2 {[%emt 0:00:00]} 20. Kxg2 {[%emt 0:00:09]} Ne6 {[%emt 0:00:00]} 21. Nxe6 {[%emt 0:00:46]} Rxe6 $14 {[%emt 0:00:00]} 22. Rd1 {[%emt 0:00:02]} Qb6 {[%emt 0:00:00]} 23. Rfd2 {[%emt 0:00:59]} Ree8 {[%emt 0:00:00]} 24. Na4 {[%emt 0:00:56]} Qc7 {[%emt 0:00:00]} 25. Nc5 {[%emt 0:00:59]} Qe7 {[%emt 0:00:00]} 26. Rd6 {[%emt 0:01:45]} Rec8 {[%emt 0:00:00]} 27. R6d4 {[%emt 0:04:57]} g6 {[%emt 0:00:00]} 28. Qc3 {[%emt 0:03:49]} b6 {[%emt 0:00:00]} 29. Na4 {[%emt 0:07:44]} c5 {[%emt 0:01:30]} 30. Rd6 {[%emt 0:01:31]} Rd8 {[%emt 0:00:28]} 31. Qd2 {[%emt 0:00:23]} Rxd6 {[%emt 0:00:33]} 32. Qxd6 {[%emt 0:00:02]} Re8 {[%emt 0:00:44]} 33. Nc3 {[%emt 0:00:08]} Kg7 {[%emt 0:01:30]} 34. Nb5 {[%emt 0:04:56]} Qxd6 {[%emt 0:01:09]} 35. Nxd6 {[%emt 0:01:03]} Re7 {[%emt 0:00:34]} 36. Kf2 {[%emt 0:03:36]} a6 {[%emt 0:05:53]} 37. g4 {[%emt 0:02:07]} h6 {[%emt 0:00:54]} 38. h4 {[%emt 0:00:17]} Kf8 {[%emt 0:02:34]} 39. Nc8 {[%emt 0:00:31]} Rd7 {[%emt 0:00:28]} 40. Rc1 {[%emt 0:01:04]} b5 {[%emt 0:01:35]} 41. Rxc5 {[%emt 0:30:56]} Rd2+ {[%emt 0:30:25]} 42. Kg3 {[%emt 0:00:33]} Rxa2 {[%emt 0:00:13]} 43. Rc6 {[%emt 0:01:45]} Ne8 {[%emt 0:00:00]} 44. Nb6 {[%emt 0:00:00]} Rb2 {[%emt 0:00:00]} 45. Nd5 {[%emt 0:00:00]} Kg7 {[%emt 0:00:00]} 46. b4 {[%emt 0:00:00]} Ra2 {[%emt 0:00:00]} 47. g5 {[%emt 0:00:00]} hxg5 {[%emt 0:00:00]} 48. hxg5 {[%emt 0:00:00]} f6 {[%emt 0:00:00]} 49. gxf6+ {[%emt 0:16:42]} 1-0